bitfinex-derivatives/quotes_BTCF0:USTF0_20251028
["timestamp","ask_amount","ask_price","bid_price","bid_amount"]
[1761626815661,0.002,113950.0,113940.0,0.51256223]
[1761626815957,0.002,113950.0,113940.0,0.52832969]
[1761626817265,0.002,113950.0,113940.0,0.4494924]
[1761626818164,0.002,113950.0,113940.0,0.52832969]
[1761626818461,0.002,113950.0,113940.0,0.4494924]
[1761626819166,0.002,113950.0,113940.0,0.52832969]
[1761626819463,0.002,113950.0,113940.0,0.4494924]
[1761626822668,0.0897611,113950.0,113940.0,0.51259849]
[1761626826067,0.002,113950.0,113940.0,0.51259849]
[1761626826960,0.002,113950.0,113940.0,0.4494924]
[1761626827361,0.002,113950.0,113940.0,0.51261375]
[1761626829872,0.002,113950.0,113940.0,0.6020942]
[1761626830068,0.002,113950.0,113940.0,0.68093149]
[1761626830275,0.1324013,113970.0,113960.0,0.1455334]
[1761626830466,0.1324013,113970.0,113960.0,0.51384063]
[1761626831170,0.1324013,113970.0,113960.0,0.52244589]
[1761626831475,0.132394,113980.0,113970.0,0.1455257]
[1761626831675,0.132394,113980.0,113970.0,0.2981275]
[1761626831878,0.132394,113980.0,113970.0,0.36123113]
[1761626832369,0.02168,113980.0,113970.0,0.51383293]
[1761626832573,0.1323856,113990.0,113980.0,0.145518]
[1761626832773,0.1323856,113990.0,113980.0,0.4507216]
[1761626833274,0.1323856,113990.0,113980.0,0.51382523]
[1761626833672,0.1323856,113990.0,113980.0,0.36105792]
[1761626834268,0.1323856,113990.0,113980.0,0.29795429]
[1761626834477,0.1323856,113990.0,113980.0,0.29895429]
[1761626834478,0.1423856,113990.0,113980.0,0.29895429]
[1761626834974,0.1443856,113990.0,113980.0,0.29895429]
[1761626835667,0.1423856,113990.0,113980.0,0.29895429]
[1761626836073,0.1323856,113990.0,113980.0,0.30195429]
[1761626841380,0.1323856,113990.0,113980.0,0.149518]
[1761626841572,0.1323856,113990.0,113980.0,0.30195429]
[1761626844383,0.1323856,113990.0,113980.0,0.21421629]
[1761626844581,0.1459356,113990.0,113980.0,0.136158]
[1761626844882,0.1459356,113990.0,113980.0,0.28859429]
[1761626846385,0.1459356,113990.0,113980.0,0.30195429]
[1761626846978,0.1323856,113990.0,113980.0,0.30195429]
[1761626849179,0.04465,113990.0,113980.0,0.30195429]
[1761626850981,0.0877165,114010.0,113990.0,0.05849]
[1761626851189,0.1331065,114010.0,114000.0,0.1462126]
[1761626851376,0.1331065,114010.0,114000.0,0.29864889]
[1761626851578,0.1331049,114010.0,114000.0,0.29864889]
[1761626851878,0.04539,114010.0,114000.0,0.29864889]
[1761626852080,0.04639,114010.0,114000.0,0.29864889]
[1761626852276,0.1351049,114010.0,114000.0,0.29864889]
[1761626852690,0.1341049,114010.0,114000.0,0.29864889]
[1761626852985,0.1351049,114010.0,114000.0,0.29864889]
[1761626853488,0.1341049,114010.0,114000.0,0.29864889]
[1761626853688,0.1351049,114010.0,114000.0,0.29864889]
[1761626854881,0.1351049,114010.0,114000.0,0.30761347]
[1761626858785,0.04739,114010.0,114000.0,0.30761347]
[1761626859193,0.1351049,114010.0,114000.0,0.30761347]
[1761626859986,0.04739,114010.0,114000.0,0.30761347]
[1761626861282,0.1351049,114010.0,114000.0,0.30761347]
[1761626861683,0.1485049,114010.0,114000.0,0.30761347]
[1761626862192,0.1485049,114010.0,114000.0,0.15517718]
[1761626863694,0.1485049,114010.0,114000.0,0.30761347]
[1761626866296,0.002,114010.0,114000.0,0.46004976]
[1761626866487,0.002,114010.0,114000.0,0.52315339]
[1761626866686,0.002,114010.0,114000.0,0.3707171]
[1761626867095,0.0252,114010.0,114000.0,0.3707171]
[1761626867298,0.002,114010.0,114000.0,0.3707171]
[1761626867490,0.002,114010.0,114000.0,0.52315339]
[1761626867887,0.002,114010.0,114000.0,0.3707171]
[1761626878202,0.04739,114010.0,114000.0,0.3707171]
[1761626878598,0.04739,114010.0,114000.0,0.21828081]
[1761626878804,0.06039,114010.0,114000.0,0.15517718]
[1761626879197,0.148105,114010.0,114000.0,0.21828081]
[1761626879503,0.148105,114010.0,114000.0,0.15517718]
[1761626880394,0.148105,114010.0,114000.0,0.21828081]
[1761626880595,0.135105,114010.0,114000.0,0.21828081]
[1761626881102,0.002,114010.0,114000.0,0.3707171]
[1761626882104,0.02419,114010.0,114000.0,0.3707171]
[1761626882302,0.002,114010.0,114000.0,0.3707171]
[1761626882904,0.02419,114010.0,114000.0,0.30761347]
[1761626883805,0.04743,114010.0,114000.0,0.30761347]
[1761626884302,0.02419,114010.0,114000.0,0.30761347]
[1761626885897,0.002,114010.0,114000.0,0.30761347]
[1761626886808,0.002,114010.0,114000.0,0.46004976]
[1761626887005,0.1323962,114030.0,114020.0,0.1453873]
[1761626887199,0.15521986,114030.0,114020.0,0.29782359]
[1761626887599,0.1323962,114030.0,114020.0,0.29782359]
[1761626887795,0.15521988,114030.0,114020.0,0.29782359]
[1761626888102,0.15621994,114030.0,114020.0,0.29782359]
[1761626888498,0.16221994,114030.0,114020.0,0.29782359]
[1761626891101,0.17571994,114030.0,114020.0,0.29782359]
[1761626891901,0.17571994,114030.0,114020.0,0.1453873]
[1761626893815,0.17571994,114030.0,114020.0,0.29774411]
[1761626894602,0.17571994,114030.0,114020.0,0.45010092]
[1761626896218,0.17565707,114030.0,114020.0,0.45010092]
[1761626896518,0.16215707,114030.0,114020.0,0.45010092]
[1761626897219,0.16215707,114030.0,114020.0,0.29774411]
[1761626898115,0.007,114030.0,114020.0,0.51316227]
[1761626899524,0.0946996,114030.0,114020.0,0.51316227]
[1761626899824,0.0936996,114030.0,114020.0,0.51316227]
[1761626900121,0.1162596,114030.0,114020.0,0.51316227]
[1761626900312,0.1132596,114030.0,114020.0,0.51316227]
[1761626900815,0.1363896,114030.0,114020.0,0.51316227]
[1761626902223,0.04869,114030.0,114020.0,0.51316227]
[1761626902420,0.004,114030.0,114020.0,0.51316227]
[1761626904318,0.1323798,114050.0,114040.0,0.1007319]
[1761626904520,0.1323798,114050.0,114040.0,0.45008552]
[1761626905317,0.1323798,114050.0,114040.0,0.29772871]
[1761626905519,0.30523661,114050.0,114040.0,0.19699681]
[1761626905825,0.30523661,114050.0,114040.0,0.28468881]
[1761626906125,0.30623661,114050.0,114040.0,0.28468881]
[1761626907733,0.30323661,114050.0,114040.0,0.28468881]
[1761626910331,0.1508798,114050.0,114040.0,0.28468881]
[1761626910529,0.30323661,114050.0,114040.0,0.28468881]
[1761626914833,0.30323661,114050.0,114040.0,0.29330358]
[1761626916438,0.1508798,114050.0,114040.0,0.29330358]
[1761626916637,0.1508798,114050.0,114040.0,0.30728358]
[1761626916939,0.30323661,114050.0,114040.0,0.30728358]
[1761626917436,0.1508798,114050.0,114040.0,0.30728358]
[1761626917637,0.30323661,114050.0,114040.0,0.30728358]
[1761626917838,0.30323661,114050.0,114040.0,0.45964039]
[1761626918239,0.1508798,114050.0,114040.0,0.45964039]
[1761626919046,0.1373798,114050.0,114040.0,0.45964039]
[1761626925744,0.1373798,114050.0,114040.0,0.30728358]
[1761626926045,0.30313661,114050.0,114040.0,0.05325477]
[1761626926229,0.30313661,114050.0,114040.0,0.29330358]
[1761626928639,0.31245355,114050.0,114040.0,0.30728358]
[1761626929438,0.32585355,114050.0,114040.0,0.29330358]
[1761626932844,0.32585355,114050.0,114040.0,0.44566039]
[1761626933040,0.32585355,114050.0,114040.0,0.45964039]
[1761626933647,0.32585355,114050.0,114040.0,0.15492677]
[1761626933948,0.32585355,114050.0,114040.0,0.45964039]
[1761626934742,0.11540124,114050.0,114040.0,0.45964039]
[1761626935038,0.1156443,114050.0,114040.0,0.52270174]
[1761626935459,0.1388343,114050.0,114040.0,0.52270174]
[1761626936133,0.1156443,114050.0,114040.0,0.52270174]
[1761626936542,0.0926843,114050.0,114040.0,0.52270174]
[1761626937343,0.0886843,114050.0,114040.0,0.52270174]
[1761626937534,0.1116443,114050.0,114040.0,0.52270174]
[1761626938847,0.0886843,114050.0,114040.0,0.52270174]
[1761626939445,0.1113943,114050.0,114040.0,0.52270174]
[1761626939643,0.001,114050.0,114040.0,0.52270174]
[1761626939846,0.0876787,114060.0,114050.0,0.1464843]
[1761626940042,0.0876787,114060.0,114050.0,0.5142052]
[1761626940250,0.1332355,114070.0,114060.0,0.146473]
[1761626940444,0.1332355,114070.0,114060.0,0.45118662]
[1761626940646,0.1332355,114070.0,114060.0,0.5141939]
[1761626941555,0.1332355,114070.0,114060.0,0.45118662]
[1761626942052,0.1342355,114070.0,114060.0,0.45118662]
[1761626942543,0.1372355,114070.0,114060.0,0.45118662]
[1761626946150,0.1143855,114070.0,114060.0,0.45118662]
[1761626947353,0.0916755,114070.0,114060.0,0.60354343]
[1761626947656,0.004,114070.0,114060.0,0.66655071]
[1761626948059,0.135639,114070.0,114060.0,0.5141939]
[1761626948564,0.091669,114070.0,114060.0,0.5141939]
[1761626949463,0.004,114070.0,114060.0,0.5141939]
[1761626949658,0.091669,114070.0,114060.0,0.5141939]
[1761626951966,0.114559,114070.0,114060.0,0.5141939]
[1761626952761,0.114559,114070.0,114060.0,0.45118662]
[1761626954767,0.091669,114070.0,114060.0,0.45118662]
[1761626955066,0.004,114070.0,114060.0,0.45118662]
[1761626955468,0.114559,114070.0,114060.0,0.45118662]
[1761626955763,0.114559,114070.0,114060.0,0.45088634]
[1761626955764,0.135639,114070.0,114060.0,0.45088634]
[1761626956167,0.135639,114070.0,114060.0,0.146473]
[1761626956358,0.135639,114070.0,114060.0,0.45088634]
[1761626961769,0.114559,114070.0,114060.0,0.45088634]
[1761626962467,0.004,114070.0,114060.0,0.45088634]
[1761626963168,0.004,114070.0,114060.0,0.51389362]
[1761626965164,0.1105369,114100.0,114090.0,0.087646]
[1761626965372,0.131616,114110.0,114100.0,0.0568]
[1761626965568,0.144806,114110.0,114100.0,0.19545667]
[1761626965865,0.144806,114110.0,114100.0,0.29665267]
[1761626965866,0.04397,114110.0,114100.0,0.29665267]
[1761626966259,0.1316083,114110.0,114100.0,0.29665267]
[1761626966461,0.1316057,114120.0,114110.0,0.1444383]
[1761626966656,0.1316057,114120.0,114110.0,0.29664497]
[1761626967063,0.1316057,114120.0,114110.0,0.30533217]
[1761626967564,0.1447957,114120.0,114110.0,0.04325]
[1761626967773,0.100836,114100.0,114090.0,0.29665587]
[1761626967972,0.04397,114100.0,114090.0,0.29665587]
[1761626968157,0.1366636,114110.0,114100.0,0.131446]
[1761626968469,0.1462636,114110.0,114100.0,0.28365267]
[1761626968973,0.1462636,114110.0,114100.0,0.29229139]
[1761626969269,0.1462636,114110.0,114100.0,0.0438]
[1761626969665,0.1462636,114110.0,114100.0,0.19600667]
[1761626971271,0.1462636,114110.0,114100.0,0.19800667]
[1761626972566,0.1326636,114110.0,114100.0,0.29841267]
[1761626973273,0.1326636,114110.0,114100.0,0.0458]
[1761626973274,0.1462636,114110.0,114100.0,0.0458]
[1761626973471,0.29847027,114110.0,114100.0,0.002]
[1761626973974,0.29847027,114110.0,114100.0,0.0458]
[1761626974175,0.1462636,114110.0,114100.0,0.0458]
[1761626974876,0.1462636,114110.0,114100.0,0.02351]
[1761626975471,0.1462636,114110.0,114100.0,0.0458]
[1761626978575,0.7462636,114110.0,114100.0,0.0458]
[1761626978774,0.7462636,114110.0,114100.0,0.002]
[1761626978775,0.29847027,114110.0,114100.0,0.002]
[1761626983179,0.30730692,114110.0,114100.0,0.002]
[1761626983785,0.90730692,114110.0,114100.0,0.002]
[1761626983973,0.30730692,114110.0,114100.0,0.002]
[1761626984170,0.1462813,114080.0,114070.0,0.38710668]
[1761626984376,0.1326813,114080.0,114070.0,0.29643007]
[1761626984577,0.1326813,114080.0,114070.0,0.42857685]
[1761626985382,0.1326813,114080.0,114070.0,0.43657685]
[1761626985582,0.1326813,114080.0,114070.0,0.28437018]
[1761626985778,0.1326813,114080.0,114070.0,0.43657685]
[1761626985981,0.17464332,114110.0,114100.0,0.1442059]
[1761626985982,0.1326644,114110.0,114100.0,0.1442059]
[1761626986276,0.1326644,114110.0,114100.0,0.20876667]
[1761626986480,0.1326644,114110.0,114100.0,0.29641257]
[1761626986780,0.1462644,114110.0,114100.0,0.29641257]
[1761626987184,0.1472644,114110.0,114100.0,0.29641257]
[1761626987584,0.1472644,114110.0,114100.0,0.29741257]
[1761626987780,0.1472644,114110.0,114100.0,0.1324459]
[1761626988982,0.1472644,114110.0,114100.0,0.0448]
[1761626994078,0.32209925,114110.0,114100.0,0.001]
[1761626994291,0.29947107,114110.0,114100.0,0.001]
[1761626994992,0.89947107,114110.0,114100.0,0.001]
[1761626995887,0.92211024,114110.0,114100.0,0.001]
[1761626997188,0.76990357,114110.0,114100.0,0.001]
[1761626998489,0.76990357,114110.0,114100.0,0.02251]
[1761626998788,0.92211024,114110.0,114100.0,0.001]
[1761626999584,0.76990357,114110.0,114100.0,0.02342]
[1761627001180,0.92211024,114110.0,114100.0,0.001]
[1761627001381,0.38211024,114110.0,114100.0,0.001]
[1761627001875,0.40577966,114110.0,114100.0,0.001]
[1761627003088,0.1444713,114080.0,114070.0,0.19952603]
[1761627003390,0.087669,114070.0,114060.0,0.06300728]
[1761627003583,0.144479,114070.0,114060.0,0.19538398]
[1761627003790,0.144479,114070.0,114060.0,0.23905109]
[1761627004087,0.144479,114070.0,114060.0,0.33565944]
[1761627004275,0.144479,114070.0,114060.0,0.48786611]
[1761627004681,0.144479,114070.0,114060.0,0.49686611]
[1761627005085,0.144479,114070.0,114060.0,0.40918941]
[1761627005493,0.144479,114070.0,114060.0,0.41018941]
[1761627005986,0.144479,114070.0,114060.0,0.25798274]
[1761627006186,0.144479,114070.0,114060.0,0.06363165]
[1761627008094,0.144479,114070.0,114060.0,0.06263165]
[1761627008294,0.144479,114070.0,114060.0,0.05763165]
[1761627009695,0.144479,114070.0,114060.0,0.20983832]
[1761627009992,0.144479,114070.0,114060.0,0.29751502]
[1761627011493,0.144479,114070.0,114060.0,0.18755832]
[1761627011995,0.144479,114070.0,114060.0,0.20913832]
[1761627013393,0.144479,114070.0,114060.0,0.29681502]
[1761627015588,0.144479,114070.0,114060.0,0.20020667]
[1761627016191,0.144479,114070.0,114060.0,0.29667355]
[1761627017786,0.144479,114070.0,114060.0,0.4489423]
[1761627020297,0.144479,114070.0,114060.0,0.3612656]
[1761627020495,0.29671671,114070.0,114060.0,0.20023771]
[1761627020993,0.144479,114070.0,114060.0,0.20023771]
[1761627021996,0.144479,114070.0,114060.0,0.19823771]
[1761627022499,0.144479,114070.0,114060.0,0.20722998]
[1761627023394,0.144479,114070.0,114060.0,0.19623771]
[1761627023595,0.144479,114070.0,114060.0,0.20023771]
[1761627023798,0.29671671,114070.0,114060.0,0.20023771]
[1761627024101,0.144479,114070.0,114060.0,0.20023771]
[1761627024297,0.29671671,114070.0,114060.0,0.20023771]
[1761627025000,0.29671671,114070.0,114060.0,0.19623771]
[1761627025203,0.29671671,114070.0,114060.0,0.19823771]
[1761627026592,0.29671671,114070.0,114060.0,0.20505994]
[1761627026793,0.29671671,114070.0,114060.0,0.20705994]
[1761627027296,0.29671671,114070.0,114060.0,0.20505994]
[1761627027503,0.29671671,114070.0,114060.0,0.20705994]
[1761627027704,0.144479,114070.0,114060.0,0.20705994]
[1761627027891,0.144479,114070.0,114060.0,0.19823771]
[1761627029406,0.144479,114070.0,114060.0,0.20687278]
[1761627033198,0.144479,114070.0,114060.0,0.19823771]
[1761627034707,0.144479,114070.0,114060.0,0.20689035]
[1761627036107,0.144479,114070.0,114060.0,0.42213534]
[1761627036406,0.144479,114070.0,114060.0,0.43573534]
[1761627037408,0.144479,114070.0,114060.0,0.52341204]
[1761627038609,0.131629,114070.0,114060.0,0.52341204]
[1761627052022,0.131629,114070.0,114060.0,0.21893662]
[1761627052319,0.131629,114070.0,114060.0,0.52341204]
[1761627055524,0.131629,114070.0,114060.0,0.21893662]
[1761627055818,0.131629,114070.0,114060.0,0.52341204]
[1761627059624,0.131629,114070.0,114060.0,0.43573534]
[1761627059928,0.29659671,114070.0,114060.0,0.4134827]
[1761627060114,0.29659671,114070.0,114060.0,0.26124499]
[1761627060432,0.29659671,114070.0,114060.0,0.19823771]
[1761627060625,0.29659671,114070.0,114060.0,0.046]
[1761627060819,0.29659671,114070.0,114060.0,0.26124499]
[1761627062223,0.144359,114070.0,114060.0,0.26124499]
[1761627062419,0.29659671,114070.0,114060.0,0.26124499]
[1761627062826,0.29659671,114070.0,114060.0,0.26995036]
[1761627064231,0.29659671,114070.0,114060.0,0.26124499]
[1761627072837,0.144359,114070.0,114060.0,0.26124499]
[1761627073138,0.29659671,114070.0,114060.0,0.26124499]
[1761627077743,0.144359,114070.0,114060.0,0.10900728]
[1761627079143,0.31932006,114070.0,114060.0,0.046]
[1761627081738,0.29661448,114070.0,114060.0,0.046]
[1761627082845,0.3193145,114070.0,114060.0,0.046]
[1761627083353,0.29661448,114070.0,114060.0,0.046]
[1761627084143,0.31931404,114070.0,114060.0,0.046]
[1761627084347,0.29661448,114070.0,114060.0,0.046]
[1761627084940,0.31931319,114070.0,114060.0,0.046]
[1761627085253,0.3193142,114070.0,114060.0,0.046]
[1761627086639,0.3203142,114070.0,114060.0,0.046]
[1761627087247,0.3193142,114070.0,114060.0,0.046]
[1761627090154,0.3193142,114070.0,114060.0,0.02442]
[1761627091351,0.3193142,114070.0,114060.0,0.04744]
[1761627094053,0.16705872,114070.0,114060.0,0.04744]
[1761627094254,0.3193142,114070.0,114060.0,0.04744]
[1761627095759,0.3193142,114070.0,114060.0,0.02442]
[1761627098555,0.3193142,114070.0,114060.0,0.04744]
[1761627098855,0.16705872,114070.0,114060.0,0.21350548]
[1761627099463,0.16705872,114070.0,114060.0,0.06125]
[1761627099854,0.16705872,114070.0,114060.0,0.21350548]
[1761627102351,0.15432872,114070.0,114060.0,0.21350548]
[1761627102653,0.131629,114070.0,114060.0,0.21350548]
[1761627108665,0.145209,114070.0,114060.0,0.04744]
[1761627119068,0.29746448,114070.0,114060.0,0.02442]
[1761627119864,0.29746448,114070.0,114060.0,0.04544]
[1761627120263,0.32027376,114070.0,114060.0,0.04544]
[1761627121163,0.16801828,114070.0,114060.0,0.04544]
[1761627132982,0.16801828,114070.0,114060.0,0.002]
[1761627133181,0.32027376,114070.0,114060.0,0.002]
[1761627133874,0.32027376,114070.0,114060.0,0.02329]
[1761627134074,0.32027376,114070.0,114060.0,0.002]
[1761627134883,0.32027376,114070.0,114060.0,0.02329]
[1761627135384,0.32027376,114070.0,114060.0,0.04502]
[1761627136983,0.16801828,114070.0,114060.0,0.04502]
[1761627139788,0.3202762,114070.0,114060.0,0.19727792]
[1761627144197,0.3202762,114070.0,114060.0,0.17554792]
[1761627144504,0.3202762,114070.0,114060.0,0.02329]
[1761627145098,0.3202762,114070.0,114060.0,0.002]
[1761627154703,0.320288,114070.0,114060.0,0.002]
[1761627164801,0.47254592,114070.0,114060.0,0.002]
[1761627165112,0.320288,114070.0,114060.0,0.002]
[1761627166202,0.1454544,114050.0,114040.0,0.26730357]
[1761627166606,0.29771232,114050.0,114040.0,0.20429629]
[1761627167204,0.1454544,114050.0,114040.0,0.20429629]
[1761627167404,0.1454544,114050.0,114040.0,0.19559253]
[1761627167712,0.1454544,114050.0,114040.0,0.20159253]
[1761627168611,0.29771232,114050.0,114040.0,0.26459981]
[1761627169212,0.1454544,114050.0,114040.0,0.26459981]
[1761627169514,0.29771232,114050.0,114040.0,0.20159253]
[1761627170514,0.29771232,114050.0,114040.0,0.04933461]
[1761627170915,0.29771232,114050.0,114040.0,0.20159253]
[1761627177414,0.29771232,114050.0,114040.0,0.00608461]
[1761627177725,0.29771232,114050.0,114040.0,0.02738461]
[1761627178022,0.29771232,114050.0,114040.0,0.04933461]
[1761627180722,0.29771232,114050.0,114040.0,0.20159253]
[1761627181115,0.1454544,114050.0,114040.0,0.20159253]
[1761627181315,0.1100244,114050.0,114040.0,0.36692045]
[1761627181518,0.1100244,114050.0,114040.0,1.05461235]
[1761627181815,0.0876844,114050.0,114040.0,1.05461235]
[1761627182012,0.1330244,114050.0,114040.0,0.75009651]
[1761627182218,0.1330244,114050.0,114040.0,1.05461235]
[1761627183329,0.1098144,114050.0,114040.0,1.05461235]
[1761627184330,0.1330244,114050.0,114040.0,1.05461235]
[1761627184729,0.0876842,114050.0,114040.0,0.60687027]
[1761627184930,0.0876821,114060.0,114050.0,0.1462804]
[1761627185122,0.0876821,114060.0,114050.0,0.51368887]
[1761627186327,0.1098121,114060.0,114050.0,0.51368887]
[1761627186635,0.1098121,114060.0,114050.0,0.51568887]
[1761627187834,0.0876821,114060.0,114050.0,0.51568887]
[1761627188433,0.0876821,114060.0,114050.0,0.45279624]
[1761627189536,0.0876693,114070.0,114060.0,0.1462765]
[1761627189728,0.0876693,114070.0,114060.0,0.45079234]
[1761627190124,0.1320893,114070.0,114060.0,0.45079234]
[1761627191629,0.0876693,114070.0,114060.0,0.45079234]
[1761627192732,0.1107293,114070.0,114060.0,0.45079234]
[1761627192939,0.1320893,114070.0,114060.0,0.45079234]
[1761627193533,0.1320893,114070.0,114060.0,0.96311584]
[1761627193730,0.1459793,114070.0,114060.0,0.28546442]
[1761627194135,0.1459793,114070.0,114060.0,0.19778792]
[1761627195340,0.1459793,114070.0,114060.0,0.29850442]
[1761627195531,0.1459793,114070.0,114060.0,0.45076234]
[1761627196440,0.1459793,114070.0,114060.0,0.36308584]
[1761627196630,0.1459793,114070.0,114060.0,0.35004584]
[1761627196831,0.1459793,114070.0,114060.0,0.19778792]
[1761627200436,0.29823722,114070.0,114060.0,0.04553]
[1761627200644,0.29823722,114070.0,114060.0,0.19778792]
[1761627201747,0.1459793,114070.0,114060.0,0.04553]
[1761627217665,0.1459793,114070.0,114060.0,0.19778414]
[1761627218260,0.1459793,114070.0,114060.0,0.04553]
[1761627218462,0.1459793,114070.0,114060.0,0.10846008]
[1761627219668,0.1459793,114070.0,114060.0,0.26071422]
[1761627227269,0.1459793,114070.0,114060.0,0.10846008]
[1761627227470,0.1459793,114070.0,114060.0,0.26071422]
[1761627228173,0.1459793,114070.0,114060.0,0.34839072]
[1761627231073,0.1459793,114070.0,114060.0,0.19613658]
[1761627231380,0.1459793,114070.0,114060.0,0.34839072]
[1761627231561,0.1107293,114070.0,114060.0,0.36172072]
[1761627231769,0.1318193,114070.0,114060.0,0.36172072]
[1761627231969,0.1318193,114070.0,114060.0,0.20946658]
[1761627232270,0.1449693,114070.0,114060.0,0.20946658]
[1761627233679,0.1318193,114070.0,114060.0,0.36172072]
[1761627233882,0.1449693,114070.0,114060.0,0.36172072]
[1761627234179,0.1449693,114070.0,114060.0,0.20946658]
[1761627237183,0.0876693,114070.0,114060.0,0.20946658]
[1761627237378,0.1303893,114070.0,114060.0,0.45104478]
[1761627237579,0.1303893,114070.0,114060.0,0.20946658]
[1761627237882,0.1303893,114070.0,114060.0,0.36172072]
[1761627248292,0.1303893,114070.0,114060.0,0.20946658]
[1761627248595,0.1303893,114070.0,114060.0,0.36172072]
[1761627257301,0.1303893,114070.0,114060.0,0.51397486]
[1761627257900,0.1303893,114070.0,114060.0,0.36172072]
[1761627261798,0.1303893,114070.0,114060.0,0.51389066]
[1761627263796,0.1092993,114070.0,114060.0,0.51389066]
[1761627264295,0.1308693,114070.0,114060.0,0.51389066]
[1761627266404,0.1438793,114070.0,114060.0,0.29874854]
[1761627266612,0.1438793,114070.0,114060.0,0.43763058]
[1761627271311,0.1438793,114070.0,114060.0,0.50056066]
[1761627272310,0.1438793,114070.0,114060.0,0.51455066]
[1761627274416,0.1308693,114070.0,114060.0,0.51455066]
[1761627280331,0.1308693,114070.0,114060.0,0.21012658]
[1761627280532,0.1308693,114070.0,114060.0,0.51455066]
[1761627284129,0.1308693,114070.0,114060.0,0.1471965]
[1761627284538,0.1308693,114070.0,114060.0,0.45162058]
[1761627287939,0.1532825,114070.0,114060.0,0.45162058]
[1761627288238,0.1308693,114070.0,114060.0,0.45162058]
[1761627288635,0.1308693,114070.0,114060.0,0.51455066]
[1761627292744,0.1435093,114070.0,114060.0,0.19613658]
[1761627293049,0.1435093,114070.0,114060.0,0.50056066]
[1761627294750,0.29572134,114070.0,114060.0,0.04553]
[1761627294940,0.29572134,114070.0,114060.0,0.19774204]
[1761627295137,0.29572134,114070.0,114060.0,0.26067212]
[1761627298846,0.29572134,114070.0,114060.0,0.34834862]
[1761627299535,0.29572134,114070.0,114060.0,0.51444066]
[1761627300141,0.1435093,114070.0,114060.0,0.36222862]
[1761627300446,0.1308693,114070.0,114060.0,0.36222862]
[1761627301352,0.1308693,114070.0,114060.0,0.27455212]
[1761627301951,0.1440993,114070.0,114060.0,0.27455212]
[1761627302852,0.29631134,114070.0,114060.0,0.27455212]
[1761627303151,0.1440993,114070.0,114060.0,0.10846008]
[1761627303354,0.29631134,114070.0,114060.0,0.26067212]
[1761627305339,0.29631134,114070.0,114060.0,0.10846008]
[1761627305547,0.29631134,114070.0,114060.0,0.26067212]
[1761627309569,0.29631134,114070.0,114060.0,0.19774204]
[1761627311456,0.29631134,114070.0,114060.0,0.26067212]
[1761627312553,0.29631134,114070.0,114060.0,0.28541854]
[1761627312853,0.1440993,114070.0,114060.0,0.28541854]
[1761627313047,0.29631134,114070.0,114060.0,0.28541854]
[1761627315362,0.1440993,114070.0,114060.0,0.28541854]
[1761627315660,0.29631134,114070.0,114060.0,0.28541854]
[1761627316959,0.29631134,114070.0,114060.0,0.19774204]
[1761627319267,0.1440993,114070.0,114060.0,0.19774204]
[1761627319559,0.29631134,114070.0,114060.0,0.04553]
[1761627319761,0.29631134,114070.0,114060.0,0.19774204]
[1761627321154,0.29631134,114070.0,114060.0,0.26067212]
[1761627321355,0.29631134,114070.0,114060.0,0.10846008]
[1761627321555,0.1440993,114070.0,114060.0,0.19774204]
[1761627321863,0.29631134,114070.0,114060.0,0.19774204]
[1761627322363,0.29631134,114070.0,114060.0,0.26067212]
[1761627323656,0.29631134,114070.0,114060.0,0.10846008]
[1761627323855,0.296358,114070.0,114060.0,0.10846008]
[1761627325661,0.296358,114070.0,114060.0,0.08544008]
[1761627325863,0.1461165,114060.0,114050.0,0.06293008]
[1761627326078,0.1461242,114050.0,114040.0,0.04375461]
[1761627326366,0.2983829,114050.0,114040.0,0.04375461]
[1761627327454,0.2983829,114050.0,114040.0,0.04875461]
[1761627330358,0.2983829,114050.0,114040.0,0.02766461]
[1761627330562,0.2983829,114050.0,114040.0,0.00508461]
[1761627330963,0.2983829,114050.0,114040.0,0.04946461]
[1761627333173,0.1461242,114050.0,114040.0,0.04946461]
[1761627333470,0.2983829,114050.0,114040.0,0.04946461]
[1761627343176,0.1461242,114050.0,114040.0,0.04946461]
[1761627345078,0.1329242,114050.0,114040.0,0.21547331]
[1761627346074,0.1460642,114050.0,114040.0,0.21547331]
[1761627360486,0.1460642,114050.0,114040.0,0.04946461]
[1761627360689,0.2983229,114050.0,114040.0,0.04946461]
[1761627361783,0.2983229,114050.0,114040.0,0.04817461]
[1761627362690,0.32144205,114050.0,114040.0,0.00508461]
[1761627362884,0.1450219,114040.0,114030.0,0.04237]
[1761627363190,0.32040201,114040.0,114030.0,0.02127]
[1761627363391,0.0877073,114020.0,114010.0,0.295608]
[1761627363590,0.1316473,114020.0,114010.0,0.30428795]
[1761627363887,0.29738061,114020.0,114010.0,0.19514962]
[1761627364191,0.14512191,114020.0,114010.0,0.18187962]
[1761627364693,0.14512191,114020.0,114010.0,0.05104995]
[1761627364990,0.14512191,114020.0,114010.0,0.05204995]
[1761627365892,0.14612191,114020.0,114010.0,0.14976485]
[1761627366088,0.14612191,114020.0,114010.0,0.30202355]
[1761627368792,0.05841461,114020.0,114010.0,0.30202355]
[1761627370493,0.00108461,114020.0,114010.0,0.31552355]
[1761627370693,0.02408461,114020.0,114010.0,0.16326485]
[1761627370995,0.04725461,114020.0,114010.0,0.31552355]
[1761627375606,0.04725461,114020.0,114010.0,0.91552355]
[1761627381516,0.13496181,114020.0,114010.0,0.91552355]
[1761627382814,0.04725461,114020.0,114010.0,0.91552355]
[1761627383716,0.04725461,114020.0,114010.0,1.06794507]
[1761627384211,0.00108461,114020.0,114010.0,0.60017053]
[1761627384602,0.00108461,114020.0,114010.0,0.67900782]
[1761627394323,0.02409461,114020.0,114010.0,0.67900782]
[1761627394524,0.04675461,114020.0,114010.0,0.67900782]
[1761627395224,0.00108461,114020.0,114010.0,0.67900782]
[1761627397127,0.02409461,114020.0,114010.0,0.67900782]
[1761627397424,0.00108461,114020.0,114010.0,0.67900782]
[1761627398423,0.02409461,114020.0,114010.0,0.67900782]
[1761627398623,0.02409461,114020.0,114010.0,0.60017053]
[1761627399621,0.04675461,114020.0,114010.0,0.60017053]
[1761627399819,0.04675461,114020.0,114010.0,0.44783042]
[1761627400221,0.04675461,114020.0,114010.0,0.60017053]
[1761627400628,0.04675461,114020.0,114010.0,0.44783042]
[1761627401331,0.04675461,114020.0,114010.0,0.29549031]
[1761627401524,0.04675461,114020.0,114010.0,0.44783042]
[1761627405018,0.04675461,114020.0,114010.0,0.52666771]
[1761627409335,0.13446181,114020.0,114010.0,0.52666771]
[1761627415143,0.04675461,114020.0,114010.0,0.44783042]
[1761627418646,0.13446181,114020.0,114010.0,0.44783042]
[1761627421440,0.14817181,114020.0,114010.0,0.14976495]
[1761627421644,0.30051192,114020.0,114010.0,0.30210506]